fUST/lending_fUST_20250828
["ID","MTS","AMOUNT","RATE_DAILY","PERIOD"]
[381883821,1756389050871,-480.0,0.0002,2]
[381883822,1756389050880,-365.82034816,0.0002,2]
[381883823,1756389050890,-480.0,0.0002,2]
[381883824,1756389050899,-480.0,0.0002,2]
[381883825,1756389050908,-480.0,0.0002,2]
[381883826,1756389050918,-480.0,0.0002,2]
[381883827,1756389050929,-1291.1,0.0002,2]
[381883828,1756389050939,-480.0,0.0002,2]
[381883829,1756389050948,-480.0,0.0002,2]
[381883830,1756389050958,-480.0,0.0002,2]
[381883831,1756389050968,-480.0,0.0002,2]
[381883832,1756389050977,-480.0,0.0002,2]
[381883833,1756389050987,-480.0,0.0002,2]
[381883834,1756389050996,-480.0,0.0002,2]
[381883835,1756389051006,-480.0,0.0002,2]
[381883836,1756389051015,-480.0,0.0002,2]
[381883837,1756389051025,-480.0,0.0002,2]
[381883838,1756389051040,-480.0,0.0002,2]
[381883839,1756389051049,-480.0,0.0002,2]
[381883840,1756389051059,-480.0,0.0002,2]
[381883841,1756389051069,-517.4,0.0002,2]
[381883842,1756389051078,-480.0,0.0002,2]
[381883843,1756389051087,-480.0,0.0002,2]
[381883844,1756389051096,-480.0,0.0002,2]
[381883845,1756389051106,-582.04,0.0002,2]
[381883846,1756389051115,-494.95,0.0002,2]
[381883847,1756389051125,-886.17,0.0002,2]
[381883848,1756389051134,-480.0,0.0002,2]
[381883849,1756389051143,-480.0,0.0002,2]
[381883850,1756389051152,-595.39,0.0002,2]
[381883851,1756389051162,-1046.89,0.0002,2]
[381883852,1756389051171,-480.0,0.0002,2]
[381883853,1756389051181,-480.0,0.0002,2]
[381883854,1756389051191,-480.0,0.0002,2]
[381883855,1756389051200,-480.0,0.0002,2]
[381883856,1756389051210,-480.0,0.0002,2]
[381883857,1756389051219,-480.0,0.0002,2]
[381883858,1756389051228,-651.74,0.0002,2]
[381883859,1756389051237,-563.3,0.0002,2]
[381883860,1756389051246,-728.38,0.0002,2]
[381883861,1756389051256,-480.0,0.0002,2]
[381883862,1756389051265,-480.0,0.0002,2]
[381883863,1756389051275,-631.28,0.0002,2]
[381883864,1756389051287,-1030.99,0.0002,2]
[381883865,1756389051296,-607.13,0.0002,2]
[381883866,1756389051305,-589.51,0.0002,2]
[381883867,1756389051315,-480.0,0.0002,2]
[381883868,1756389051324,-480.0,0.0002,2]
[381883869,1756389051334,-480.0,0.0002,2]
[381883870,1756389051344,-480.0,0.0002,2]
[381883871,1756389051353,-480.0,0.0002,2]
[381883872,1756389051363,-2153.14,0.0002,2]
[381883873,1756389051373,-480.0,0.0002,2]
[381883874,1756389051383,-812.0,0.0002,2]
[381883875,1756389051392,-1634.72,0.0002,2]
[381883876,1756389051402,-1576.12,0.0002,2]
[381883877,1756389051411,-1043.29,0.0002,2]
[381883878,1756389051421,-480.0,0.0002,2]
[381883879,1756389051431,-480.0,0.0002,2]
[381883880,1756389051441,-480.0,0.0002,2]
[381883881,1756389051450,-523.68,0.0002,2]
[381883882,1756389051460,-517.44,0.0002,2]
[381883883,1756389051472,-480.0,0.0002,2]
[381883884,1756389051481,-679.71,0.0002,2]
[381883885,1756389051490,-480.0,0.0002,2]
[381883886,1756389051499,-447.97831794,0.0002,2]
[381883887,1756389051509,-741.83,0.0002,2]
[381883888,1756389051518,-2578.28,0.0002,2]
[381883889,1756389051530,-874.67,0.0002,2]
[381883890,1756389051539,-480.0,0.0002,2]
[381883891,1756389051548,-4078.64,0.0002,2]
[381883892,1756389051558,-692.8,0.0002,2]
[381883893,1756389051567,-480.0,0.0002,2]
[381883894,1756389051577,-492.07,0.0002,2]
[381883895,1756389051586,-396.94812109,0.0002,2]
[381883896,1756389051595,-635.24,0.0002,2]
[381883897,1756389051605,-687.55,0.0002,2]
[381883898,1756389051614,-2020.49,0.0002,2]
[381883899,1756389051624,-480.0,0.0002,2]
[381883900,1756389051633,-480.0,0.0002,2]
[381883901,1756389051643,-600.24,0.0002,2]
[381883902,1756389051653,-492.67,0.0002,2]
[381883903,1756389051663,-871.29,0.0002,2]
[381883904,1756389051673,-562.27,0.0002,2]
[381883905,1756389051683,-480.0,0.0002,2]
[381883906,1756389051692,-480.0,0.0002,2]
[381883907,1756389051702,-846.48,0.0002,2]
[381883908,1756389051712,-480.0,0.0002,2]
[381883909,1756389051721,-3291.27,0.0002,2]
[381883910,1756389051731,-494.39,0.0002,2]
[381883911,1756389051740,-480.0,0.0002,2]
[381883912,1756389051750,-480.0,0.0002,2]
[381883913,1756389051760,-1432.36,0.0002,2]
[381883914,1756389051770,-480.0,0.0002,2]
[381883915,1756389051785,-590.88,0.0002,2]
[381883916,1756389051801,-3306.46,0.0002,2]
[381883917,1756389051810,-1022.61,0.0002,2]
[381883918,1756389051819,-480.0,0.0002,2]
[381883919,1756389051829,-480.0,0.0002,2]
[381883920,1756389051839,-480.0,0.0002,2]
[381883921,1756389051849,-480.0,0.0002,2]
[381883922,1756389051858,-745.13,0.0002,2]
[381883923,1756389051868,-678.37,0.0002,2]
[381883924,1756389051878,-480.0,0.0002,2]
[381883925,1756389051889,-562.74,0.0002,2]
[381883926,1756389051899,-480.0,0.0002,2]
[381883927,1756389051909,-480.0,0.0002,2]
[381883928,1756389051919,-344.32037957,0.0002,2]
[381883929,1756389051928,-480.0,0.0002,2]
[381883930,1756389051938,-2286.71,0.0002,2]
[381883931,1756389051947,-480.0,0.0002,2]
[381883932,1756389051956,-480.0,0.0002,2]
[381883933,1756389051966,-501.17,0.0002,2]
[381883934,1756389051976,-766.32,0.0002,2]
[381883935,1756389051985,-2415.01,0.0002,2]
[381883936,1756389051995,-480.0,0.0002,2]
[381883937,1756389052004,-1968.31,0.0002,2]
[381883938,1756389052014,-1466.66,0.0002,2]
[381883939,1756389052024,-1301.59,0.0002,2]
[381883940,1756389052037,-752.25,0.0002,2]
[381883941,1756389052047,-1040.68,0.0002,2]
[381883942,1756389052056,-480.0,0.0002,2]
[381883943,1756389052066,-480.0,0.0002,2]
[381883944,1756389052075,-1595.62,0.0002,2]
[381883945,1756389052084,-253.55103958,0.0002,2]
[381883946,1756389052094,-2468.12,0.0002,2]
[381883947,1756389052104,-480.0,0.0002,2]
[381883948,1756389052114,-480.0,0.0002,2]
[381883949,1756389052124,-1770.52,0.0002,2]
[381883950,1756389052133,-480.0,0.0002,2]
[381883951,1756389052143,-1195.83,0.0002,2]
[381883952,1756389052152,-480.0,0.0002,2]
[381883953,1756389052161,-480.0,0.0002,2]
[381883954,1756389052170,-480.0,0.0002,2]
[381883955,1756389052180,-1281.94,0.0002,2]
[381883956,1756389052189,-2670.21,0.0002,2]
[381883957,1756389052198,-153.10409272,0.0002,2]
[381883958,1756389052208,-480.0,0.0002,2]
[381883959,1756389052217,-480.0,0.0002,2]
[381883960,1756389052226,-480.0,0.0002,2]
[381883961,1756389052235,-480.0,0.0002,2]
[381883962,1756389052245,-494.03,0.0002,2]
[381883963,1756389052254,-1350.74,0.0002,2]
[381883964,1756389052264,-4000.0,0.0002,4]
[381883965,1756389052274,-533.3,0.0002,2]
[381883966,1756389052286,-480.0,0.0002,2]
[381883967,1756389052295,-480.0,0.0002,2]
[381883968,1756389052304,-499.97,0.0002,2]
[381883969,1756389052314,-480.0,0.0002,2]
[381883970,1756389052323,-480.0,0.0002,2]
[381883971,1756389052333,-480.0,0.0002,2]
[381883972,1756389052342,-480.0,0.0002,2]
[381883973,1756389052352,-480.0,0.0002,2]
[381883974,1756389052362,-3126.6,0.0002,2]
[381883975,1756389052371,-480.0,0.0002,2]
[381883976,1756389052382,-480.0,0.0002,2]
[381883977,1756389052391,-480.0,0.0002,2]
[381883978,1756389052400,-2968.4,0.0002,2]
[381883979,1756389052409,-480.0,0.0002,2]
[381883980,1756389052419,-168.0,0.00020017,2]
[381883981,1756389052428,-508.88566815,0.00020021,2]
[381883982,1756389052437,-264.06479288,0.00020021,2]
[381883983,1756389052447,-794.72586856,0.00020021,2]
[381883984,1756389052457,-1000.0,0.00020021,2]
[381883985,1756389052468,-500.0,0.00020021,2]
[381883986,1756389052478,-500.0,0.00020021,2]
[381883987,1756389052488,-1000.0,0.00020021,2]
[381883988,1756389052499,-1000.0,0.00020021,2]
[381883989,1756389052508,-1002.20896326,0.00020021,2]
[381883990,1756389052518,-1000.0,0.00020021,2]
[381883991,1756389052529,-500.0,0.00020021,2]
[381883992,1756389052539,-503.32526424,0.00020021,2]
[381883993,1756389052548,-1000.0,0.00020021,2]
[381883994,1756389052559,-1000.0,0.00020021,2]
[381883995,1756389052569,-505.34538249,0.00020021,2]
[381883996,1756389052579,-1000.0,0.00020021,2]
[381883997,1756389052588,-1000.0,0.00020021,2]
[381883998,1756389052598,-1137.49366838,0.00020021,2]
[381883999,1756389052608,-215.83401308,0.00020021,2]
[381884000,1756389052617,-1000.0,0.00020021,2]
[381884001,1756389052627,-1000.0,0.00020021,2]
[381884002,1756389052637,-1000.0,0.00020021,2]
[381884003,1756389052647,-1000.0,0.00020021,2]
[381884004,1756389052657,-1000.0,0.00020021,2]
[381884005,1756389052667,-1000.0,0.00020021,2]
[381884006,1756389052676,-150000.0,0.00020021,2]
[381884007,1756389052686,-48919.50070697,0.00020021,2]
[381884008,1756389052695,-160.0,0.00020038,2]
[381884009,1756389052705,-168.0,0.00020042,2]
[381884010,1756389052714,-2097.88789294,0.00020043,2]
[381884011,1756389052724,-792.3908312,0.00020046,2]
[381884012,1756389052734,-1464.3427379,0.0002007,2]
[381884013,1756389052743,-269.2462372,0.0002007,2]
[381884014,1756389052753,-160.43103054,0.00020073,2]
[381884015,1756389052762,-3000.0,0.0002008,2]
[381884016,1756389052771,-228.119956,0.00020087,20]
[381884017,1756389052784,-157.23025,0.00020087,20]
[381884018,1756389052795,-168.0,0.00020088,2]
[381884019,1756389052804,-3000.0,0.0002009,2]
[381884020,1756389052818,-3000.0,0.000201,2]
[381884021,1756389052828,-168.0,0.00020104,2]
[381884022,1756389052838,-3000.0,0.0002011,2]
[381884023,1756389052848,-153.0,0.00020113,2]
[381884024,1756389052857,-3000.0,0.0002012,2]
[381884025,1756389052867,-3000.0,0.0002013,2]
[381884026,1756389052877,-3000.0,0.0002014,2]
[381884027,1756389052886,-3000.0,0.0002015,2]
[381884028,1756389052896,-3000.0,0.0002016,2]
[381884029,1756389052906,-3000.0,0.0002017,2]
[381884030,1756389052915,-13125.13035948,0.00020173,2]
[381884031,1756389052924,-3000.0,0.0002018,2]
[381884032,1756389052934,-374.877239,0.00020187,2]
[381884033,1756389052944,-3000.0,0.0002019,2]
[381884034,1756389052953,-228.119956,0.00020192,3]
[381884035,1756389052963,-157.23025,0.00020192,3]
[381884036,1756389052973,-3000.0,0.000202,2]
[381884037,1756389052983,-168.0,0.00020209,2]
[381884038,1756389052993,-3000.0,0.0002021,2]
[381884039,1756389053004,-3000.0,0.0002022,2]
[381884040,1756389053014,-3000.0,0.0002023,2]
[381884041,1756389053024,-238.0,0.00020232,2]
[381884042,1756389053036,-3000.0,0.0002024,2]
[381884043,1756389053045,-325.04613702,0.00020241,2]
[381884044,1756389053055,-3000.0,0.0002025,2]
[381884045,1756389053115,-2000.000001,0.0002025,2]
[381884046,1756389053125,-4121.067315,0.0002026,2]
[381884047,1756389053135,-168.0,0.00020261,2]
[381884048,1756389053144,-1500.0,0.00020268,2]
[381884049,1756389053154,-1500.0,0.00020268,2]
[381884050,1756389053164,-500.0,0.00020268,2]
[381884051,1756389053174,-1500.0,0.00020268,2]
[381884052,1756389053184,-1500.0,0.00020268,2]
[381884053,1756389053194,-1500.0,0.00020268,2]
[381884054,1756389053204,-151.08251002,0.00020273,2]
[381884055,1756389053214,-480.0,0.00020273,2]
[381884056,1756389053223,-480.0,0.00020273,2]
[381884057,1756389053233,-480.0,0.00020273,2]
[381884058,1756389053242,-480.0,0.00020273,2]
[381884059,1756389053252,-480.0,0.00020273,2]
[381884060,1756389053261,-480.0,0.00020273,2]
[381884061,1756389053271,-494.34,0.00020273,2]
[381884062,1756389053285,-480.0,0.00020273,2]
[381884063,1756389053295,-480.0,0.00020273,2]
[381884064,1756389053304,-480.0,0.00020273,2]
[381884065,1756389053313,-480.0,0.00020273,2]
[381884066,1756389053323,-250.55513783,0.00020273,2]
[381884067,1756389053332,-480.0,0.00020273,2]
[381884068,1756389053342,-480.0,0.00020273,2]
[381884069,1756389053352,-480.0,0.00020273,2]
[381884070,1756389053362,-480.0,0.00020273,2]
[381884071,1756389053371,-480.0,0.00020273,2]
[381884072,1756389053380,-480.0,0.00020273,2]
[381884073,1756389053390,-480.0,0.00020273,2]
[381884074,1756389053400,-480.0,0.00020273,2]
[381884075,1756389053410,-333.90347288,0.00020273,2]
[381884076,1756389053419,-480.0,0.00020273,2]
[381884077,1756389053429,-480.0,0.00020273,2]
[381884078,1756389053439,-480.0,0.00020273,2]
[381884079,1756389053449,-480.0,0.00020273,2]
[381884080,1756389053459,-645.6,0.00020273,2]
[381884081,1756389053469,-480.0,0.00020273,2]
[381884082,1756389053479,-1380.55,0.00020273,2]
[381884083,1756389053488,-480.0,0.00020273,2]
[381884084,1756389053498,-480.0,0.00020273,2]
[381884085,1756389053510,-480.0,0.00020273,2]
[381884086,1756389053519,-480.0,0.00020273,2]
[381884087,1756389053530,-480.0,0.00020273,2]
[381884088,1756389053540,-480.0,0.00020273,2]
[381884089,1756389053549,-480.0,0.00020273,2]
[381884090,1756389053559,-480.0,0.00020273,2]
[381884091,1756389053569,-480.0,0.00020273,2]
[381884092,1756389053579,-799.95,0.00020273,2]
[381884093,1756389053589,-480.0,0.00020273,2]
[381884094,1756389053599,-480.0,0.00020273,2]
[381884095,1756389053609,-480.0,0.00020273,2]
[381884096,1756389053619,-480.0,0.00020273,2]
[381884097,1756389053629,-480.0,0.00020273,2]
[381884098,1756389053639,-480.0,0.00020273,2]
[381884099,1756389053648,-480.0,0.00020273,2]
[381884100,1756389053659,-480.0,0.00020273,2]
[381884101,1756389053668,-480.0,0.00020273,2]
[381884102,1756389053678,-480.0,0.00020273,2]
[381884103,1756389053687,-480.0,0.00020273,2]
[381884104,1756389053697,-480.0,0.00020273,2]
[381884105,1756389053707,-480.0,0.00020273,2]
[381884106,1756389053717,-480.0,0.00020273,2]
[381884107,1756389053727,-480.0,0.00020273,2]
[381884108,1756389053737,-480.0,0.00020273,2]
[381884109,1756389053746,-516.82,0.00020273,2]
[381884110,1756389053756,-480.0,0.00020273,2]
[381884111,1756389053766,-480.0,0.00020273,2]
[381884112,1756389053777,-480.0,0.00020273,2]
[381884113,1756389053787,-488.26,0.00020273,2]
[381884114,1756389053805,-480.0,0.00020273,2]
[381884115,1756389053815,-731.01,0.00020273,2]
[381884116,1756389053825,-533.58526209,0.00020273,2]
[381884117,1756389053835,-480.0,0.00020273,2]
[381884118,1756389053847,-480.0,0.00020273,2]
[381884119,1756389053857,-480.0,0.00020273,2]
[381884120,1756389053867,-480.0,0.00020273,2]
[381884121,1756389053879,-527.38,0.00020273,2]
[381884122,1756389053890,-480.0,0.00020273,2]
[381884123,1756389053900,-480.0,0.00020273,2]
[381884124,1756389053910,-480.0,0.00020273,2]
[381884125,1756389053920,-480.0,0.00020273,2]
[381884126,1756389053930,-480.0,0.00020273,2]
[381884127,1756389053940,-592.21,0.00020273,2]
[381884128,1756389053949,-480.0,0.00020273,2]
[381884129,1756389053960,-480.0,0.00020273,2]
[381884130,1756389053970,-949.92,0.00020273,2]
[381884131,1756389053980,-480.0,0.00020273,2]
[381884132,1756389053990,-549.94,0.00020273,2]
[381884133,1756389054000,-563.71,0.00020273,2]
[381884134,1756389054010,-480.0,0.00020273,2]
[381884135,1756389054019,-480.0,0.00020273,2]
[381884136,1756389054033,-480.0,0.00020273,2]
[381884137,1756389054043,-480.0,0.00020273,2]
[381884138,1756389054053,-480.0,0.00020273,2]
[381884139,1756389054063,-480.0,0.00020273,2]
[381884140,1756389054073,-896.52,0.00020273,2]
[381884141,1756389054083,-480.0,0.00020273,2]
[381884142,1756389054093,-480.0,0.00020273,2]
[381884143,1756389054102,-252.02192356,0.00020273,2]
[381884144,1756389054112,-343.24831952,0.00020273,2]
[381884145,1756389054122,-480.0,0.00020273,2]
[381884146,1756389054131,-480.0,0.00020273,2]
[381884147,1756389054141,-1291.1,0.00020273,2]
[381884148,1756389054151,-480.0,0.00020273,2]
[381884149,1756389054160,-480.0,0.00020273,2]
[381884150,1756389054170,-480.0,0.00020273,2]
[381884151,1756389054180,-480.0,0.00020273,2]
[381884152,1756389054189,-480.0,0.00020273,2]
[381884153,1756389054200,-480.0,0.00020273,2]
[381884154,1756389054210,-480.0,0.00020273,2]
[381884155,1756389054220,-480.0,0.00020273,2]
[381884156,1756389054230,-480.0,0.00020273,2]
[381884157,1756389054240,-480.0,0.00020273,2]
[381884158,1756389054250,-480.0,0.00020273,2]
[381884159,1756389054259,-480.0,0.00020273,2]
[381884160,1756389054269,-480.0,0.00020273,2]
[381884161,1756389054281,-517.4,0.00020273,2]
[381884162,1756389054291,-480.0,0.00020273,2]
[381884163,1756389054301,-480.0,0.00020273,2]
[381884164,1756389054311,-480.0,0.00020273,2]
[381884165,1756389054322,-582.04,0.00020273,2]
[381884166,1756389054332,-494.95,0.00020273,2]
[381884167,1756389054342,-886.17,0.00020273,2]
[381884168,1756389054352,-480.0,0.00020273,2]
[381884169,1756389054362,-480.0,0.00020273,2]
[381884170,1756389054372,-595.39,0.00020273,2]
[381884171,1756389054382,-1046.89,0.00020273,2]
[381884172,1756389054391,-480.0,0.00020273,2]
[381884173,1756389054402,-480.0,0.00020273,2]
[381884174,1756389054412,-480.0,0.00020273,2]
[381884175,1756389054422,-480.0,0.00020273,2]
[381884176,1756389054432,-480.0,0.00020273,2]
[381884177,1756389054442,-480.0,0.00020273,2]
[381884178,1756389054452,-651.74,0.00020273,2]
[381884179,1756389054463,-563.3,0.00020273,2]
[381884180,1756389054475,-728.38,0.00020273,2]
[381884181,1756389054485,-480.0,0.00020273,2]
[381884182,1756389054495,-480.0,0.00020273,2]
[381884183,1756389054506,-631.28,0.00020273,2]
[381884184,1756389054517,-1030.99,0.00020273,2]
[381884185,1756389054530,-607.13,0.00020273,2]
[381884186,1756389054540,-589.51,0.00020273,2]
[381884187,1756389054551,-480.0,0.00020273,2]
[381884188,1756389054562,-480.0,0.00020273,2]
[381884189,1756389054573,-480.0,0.00020273,2]
[381884190,1756389054584,-480.0,0.00020273,2]
[381884191,1756389054594,-480.0,0.00020273,2]
[381884192,1756389054604,-2153.14,0.00020273,2]
[381884193,1756389054614,-480.0,0.00020273,2]
[381884194,1756389054624,-812.0,0.00020273,2]
[381884195,1756389054634,-1634.72,0.00020273,2]
[381884196,1756389054644,-1576.12,0.00020273,2]
[381884197,1756389054653,-1043.29,0.00020273,2]
[381884198,1756389054663,-480.0,0.00020273,2]
[381884199,1756389054673,-480.0,0.00020273,2]
[381884200,1756389054684,-480.0,0.00020273,2]
[381884201,1756389054694,-523.68,0.00020273,2]
[381884202,1756389054703,-480.0,0.00020273,2]
[381884203,1756389054714,-517.44,0.00020273,2]
[381884204,1756389054724,-679.71,0.00020273,2]
[381884205,1756389054734,-480.0,0.00020273,2]
[381884206,1756389054744,-741.83,0.00020273,2]
[381884207,1756389054753,-2578.28,0.00020273,2]
[381884208,1756389054763,-4078.64,0.00020273,2]
[381884209,1756389054773,-480.0,0.00020273,2]
[381884210,1756389054784,-874.67,0.00020273,2]
[381884211,1756389054798,-692.8,0.00020273,2]
[381884212,1756389054807,-480.0,0.00020273,2]
[381884213,1756389054817,-492.07,0.00020273,2]
[381884214,1756389054827,-635.24,0.00020273,2]
[381884215,1756389054838,-166.33909372,0.00020273,2]
[381884216,1756389055020,-521.21090628,0.00020273,2]
[381884217,1756389055034,-869.9827049,0.00020273,2]
[381884219,1756389257888,400.77379174,0.00027397,120]
[381884221,1756389739098,337.389515,0.00013699,2]
[381884222,1756389872603,500.0,0.00030092,60]
[381884224,1756389906814,914.76098258,0.00030092,60]
[381884248,1756390232165,-160.0,0.00018021,2]
[381884249,1756390232175,-300.0,0.00018037,2]
[381884250,1756390232185,-300.0,0.00018037,2]
[381884251,1756390232195,-300.0,0.00018037,2]
[381884252,1756390232206,-300.0,0.00018037,2]
[381884253,1756390232217,-300.0,0.00018037,2]
[381884254,1756390232227,-1200.0,0.00018037,2]
[381884255,1756390232237,-500.0,0.00018038,2]
[381884256,1756390232248,-500.0,0.00018038,2]
[381884257,1756390232257,-571.59269134,0.00018038,2]
[381884258,1756390232267,-500.0,0.00018038,2]
[381884259,1756390232277,-581.63017057,0.00018038,2]
[381884260,1756390232287,-199.040284,0.00018044,2]
[381884261,1756390232296,-300.0,0.00018407,2]
[381884262,1756390232305,-300.0,0.00018407,2]
[381884263,1756390232315,-300.0,0.00018407,2]
[381884264,1756390232325,-300.0,0.00018407,2]
[381884265,1756390232335,-300.0,0.00018407,2]
[381884266,1756390232344,-300.0,0.00018407,2]
[381884267,1756390232354,-300.0,0.00018407,2]
[381884268,1756390232363,-300.0,0.00018407,2]
[381884269,1756390232374,-300.0,0.00018407,2]
[381884270,1756390232383,-300.0,0.00018407,2]
[381884271,1756390232393,-300.0,0.00018407,2]
[381884272,1756390232402,-300.0,0.00018407,2]
[381884273,1756390232411,-300.0,0.00018407,2]
[381884274,1756390232421,-300.0,0.00018407,2]
[381884275,1756390232431,-300.0,0.00018407,2]
[381884276,1756390232440,-600.0,0.00018407,2]
[381884277,1756390232451,-500.0,0.00018407,2]
[381884278,1756390232461,-500.0,0.00018681,2]
[381884279,1756390232471,-1511.24037423,0.00018872,2]
[381884280,1756390232481,-301.09,0.00019,2]
[381884281,1756390232492,-571.72624364,0.00019078,2]
[381884282,1756390232505,-306.0,0.000191,2]
[381884283,1756390232515,-161.1861362,0.000191,2]
[381884284,1756390232524,-161.1861362,0.000191,2]
[381884285,1756390232534,-225.2775563,0.00019146,2]
[381884286,1756390232543,-4142.43856563,0.00019147,2]
[381884306,1756390237978,-500.0,0.00018037,2]
[381884307,1756390237988,-395.68687023,0.00018037,2]
[381884308,1756390237998,-326.26948113,0.00018037,2]
[381884309,1756390238007,-500.0,0.00018037,2]
[381884311,1756390238017,-379.42809187,0.00018037,2]
[381884312,1756390238027,-500.0,0.00018037,2]
[381884313,1756390238037,-500.0,0.00018037,2]
[381884314,1756390238047,-416.38546668,0.00018037,2]
[381884315,1756390238056,-203.77243948,0.00018037,2]
[381884316,1756390238175,-296.22756052,0.00018037,2]
[381884317,1756390238186,-197.2530672,0.00018037,2]
[381884318,1756390238195,-175.73668562,0.00018037,2]
[381884319,1756390238205,-500.0,0.00018037,2]
[381884320,1756390238217,-500.0,0.00018037,2]
[381884321,1756390238226,-500.0,0.00018037,2]
[381884322,1756390238236,-500.0,0.00018037,2]
[381884323,1756390238245,-500.0,0.00018037,2]
[381884324,1756390238255,-500.0,0.00018037,2]
[381884325,1756390238264,-500.0,0.00018037,2]
[381884326,1756390238274,-275.77276598,0.00018037,2]
[381884327,1756390238283,-379.13129654,0.00018037,2]
[381884328,1756390238293,-455.59917969,0.00018037,2]
[381884329,1756390238303,-500.0,0.00018037,2]
[381884330,1756390238312,-501.54788136,0.00018037,2]
[381884331,1756390238322,-8568.00365771,0.00019147,2]
[381884332,1756390238331,-160.0,0.00019147,2]
[381884333,1756390238341,-160.0,0.00019147,2]
[381884334,1756390238351,-425.52029335,0.00019147,2]
[381884335,1756390238360,-529.67291817,0.00019147,2]
[381884336,1756390238370,-217.27834477,0.00019147,2]
[381884337,1756390238379,-160.0,0.00019147,2]
[381884338,1756390238388,-160.0,0.00019147,2]
[381884339,1756390238398,-417.15472785,0.00019147,2]
[381884340,1756390238407,-232.64478309,0.00019147,2]
[381884341,1756390238417,-845.47023312,0.00019147,2]
[381884342,1756390238426,-160.0,0.00019147,2]
[381884343,1756390238436,-216.18903889,0.00019147,2]
[381884344,1756390238447,-160.0,0.00019147,2]
[381884345,1756390238456,-160.0,0.00019147,2]
[381884346,1756390238467,-160.0,0.00019147,2]
[381884347,1756390238476,-151.32571547,0.00019166,2]
[381884348,1756390238485,-187.78006525,0.00019166,2]
[381884349,1756390238499,-491.12,0.00019168,3]
[381884350,1756390238509,-245.56,0.00019168,3]
[381884351,1756390238518,-736.68,0.00019168,3]
[381884352,1756390238527,-500.0,0.00019173,2]
[381884353,1756390238538,-211.27534005,0.00019173,2]
[381884354,1756390238548,-500.0,0.00019173,2]
[381884355,1756390238557,-409.0,0.00019178,2]
[381884356,1756390238567,-417.947,0.00019178,2]
[381884357,1756390238577,-480.0,0.00019178,2]
[381884358,1756390238588,-480.0,0.00019178,2]
[381884359,1756390238597,-480.0,0.00019178,2]
[381884360,1756390238606,-480.0,0.00019178,2]
[381884361,1756390238617,-480.0,0.00019178,2]
[381884362,1756390238627,-480.0,0.00019178,2]
[381884363,1756390238636,-480.0,0.00019178,2]
[381884364,1756390238645,-480.0,0.00019178,2]
[381884365,1756390238655,-480.0,0.00019178,2]
[381884366,1756390238664,-480.0,0.00019178,2]